Cogmind - Beta 13 @@@ ROGUE MODE // 2024.03.28 @ 21:20:13 Player: Minty Result: Self-destructed Performance ------------- Evolutions (3) 1500 Regions Visited (7) 1400 Robots Destroyed (44) 220 Value Destroyed (939) 939 Prototype IDs (25) 500 Alien Tech Used (0) 0 Bonus (814) 814 TOTAL SCORE: 5373 Bonus ------- High Alert Combat Kills 32 Follower Combat Kills 14 Entered DSFs 500 Aligned with FarCom 300 Friendly Fire -32 Cogmind --------- Core Integrity 700/700 Matter 177/300 Energy 93/100 System Corruption 0% Temperature Cool (0) Movement Flying (35) Location -7/DSF Parts ------- > --- POWER (1) -------- (None) > --- PROPULSION (6) --- Cesium-ion Thruster Flying Fortress v7 > --- UTILITY (3) ------ Advanced Targeting Computer Improved Utility Shielding > --- WEAPON (3) ------- Heavy Flail > --- INVENTORY (5) ---- Cooling System Improved Utility Shielding Peak State ------------ > --- POWER ------------ Light Nuclear Core > --- PROPULSION ------- Flying Fortress v7 > --- UTILITY ---------- Reaction Control System Heavy Armor Plating > --- WEAPON ----------- EM Pulse Cannon Ion Cannon Heavy Flail > --- INVENTORY -------- Cesium-ion Thruster Cesium-ion Thruster Cooling System Particle Cannon Rocket Launcher [Rating: 54] Favorites ----------- Power Ion Engine Engine Ion Engine Power Core Light Nuclear Core Propulsion Wheel Leg Aluminum Leg Wheel Wheel Flight Unit Flying Fortress v7 Utility High-capacity Matter Pod Device Reaction Control System Storage High-capacity Matter Pod Processor Advanced Targeting Computer Protection Heavy Armor Plating Weapon Small Laser Energy Gun Small Laser Energy Cannon Beam Cannon Ballistic Gun Assault Rifle Launcher Rocket Launcher Impact Weapon Heavy Flail Build | -11 -10 -10 -10 -9 -8 -7 -7 ------- Run | Yrd Mat Min Exi Min Mat Fac DSF Slots Evolved 6 | . . . . . 4 2 . Power . | . . . . . . . . Propulsion 4 | . . . . . 2 2 . Utility 1 | . . . . . 1 . . Weapon 1 | . . . . . 1 . . Parts Attached 48 | . 10 13 1 3 18 1 2 Power 7 | . 1 5 . . 1 . . Engine 6 | . 1 5 . . . . . Core 1 | . . . . . 1 . . Reactor . | . . . . . . . . Propulsion 14 | . 4 4 . 1 4 1 . Treads . | . . . . . . . . Leg 4 | . 4 . . . . . . Wheel 5 | . . 4 . 1 . . . Hover . | . . . . . . . . Flight 5 | . . . . . 4 1 . Utility 12 | . 1 1 . 2 6 . 2 Device 4 | . . . . 2 2 . . Storage 2 | . 1 1 . . . . . Processor 1 | . . . . . 1 . . Hackware . | . . . . . . . . Protection 5 | . . . . . 3 . 2 Artifact . | . . . . . . . . Weapon 15 | . 4 3 1 . 7 . . Energy Gun 3 | . 2 1 . . . . . Energy Cannon 4 | . . 1 . . 3 . . Ballistic Gun 4 | . 2 1 1 . . . . Ballistic Cannon . | . . . . . . . . Launcher 2 | . . . . . 2 . . Special Weapon . | . . . . . . . . Impact Weapon 2 | . . . . . 2 . . Slashing Weapon . | . . . . . . . . Piercing Weapon . | . . . . . . . . Special Melee Weapon . | . . . . . . . . Unidentified Prototypes . | . . . . . . . . Parts Lost 13 | . 1 4 . 2 5 . 1 Power 3 | . . 2 . . 1 . . Propulsion 6 | . . 2 . 2 1 . 1 Utility 1 | . . . . . 1 . . Weapon 3 | . 1 . . . 2 . . Highest Loss Streak 3 | . 1 3 . 2 3 . 1 To Critical Strikes . | . . . . . . . . Average Slot Usage (%) 87 | . 96 99 100 92 51 . 42 Engine 11 | . 14 13 14 13 1 . . Leg 8 | . 28 10 . . . . . Wheel 13 | . . 16 28 25 . . . Flight 2 | . . . . . 9 . 23 Device 2 | . . . . 9 7 . . Storage 20 | . 27 28 28 16 . . . Protection 1 | . . . . . 7 . 3 Energy Gun 10 | . 15 19 7 . . . . Energy Cannon 7 | . . 2 14 13 14 . . Ballistic Gun 6 | . 9 5 6 13 . . . Impact Weapon 1 | . . . . . 6 . 7 Naked Turns 26 | . . . . 26 . . . Heaviest Build 37 | 12 17 27 27 27 37 3 5 Greatest Support 59 | 20 20 20 20 20 50 59 9 Greatest Overweight (x) 2 | . . 1 1 2 2 . . Average Overweight (x) . | . . . 1 . . . . Largest Inventory Capacity 10 | 8 8 10 10 10 5 5 5 Average Capacity 8 | 8 8 8 10 9 5 5 5 Most Carried 10 | 6 8 10 10 10 5 1 2 Average Carried 7 | 6 7 8 9 9 4 1 1 Final Capacity 10 | 8 8 10 10 5 5 5 5 Final Carried 10 | 6 8 10 10 5 5 1 2 Class Distribution -------------------- 96% | Mutant Dominant Class ---------------- Mutant | -10/Materials Mutant | -10/Mines Mutant | -10/Exiles Mutant | -9/Mines Mutant | -8/Materials Mutant | -7/Factory Mutant | -7/DSF Resources | -11 -10 -10 -10 -9 -8 -7 -7 ----------- Run | Yrd Mat Min Exi Min Mat Fac DSF Matter Collected 900 | 200 319 180 . 38 109 . 54 Remotely . | . . . . . . . . Salvage Created 1191 | . 341 381 . 93 322 . 54 Parts 87 | . 21 36 . 6 24 . . Haulers Intercepted . | . . . . . . . . Recyclers Shooed 1 | . . . . 1 . . . Parts Field Recycled . | . . . . . . . . Retrieved Matter . | . . . . . . . . Parts Self-Destructed . | . . . . . . . . Prevented . | . . . . . . . . Kills | -11 -10 -10 -10 -9 -8 -7 -7 ------- Run | Yrd Mat Min Exi Min Mat Fac DSF Combat Hostiles Destroyed 31 | . 7 8 . 3 12 . 1 Melee 2 | . . . . . 2 . . Guns 16 | . 7 8 . 1 . . . Cannons 2 | . . . . 1 1 . . AOE 10 | . . . . 1 9 . . Classes Destroyed 10 | . 3 4 . 1 1 . 1 Worker 5 | . 1 3 . . 1 . . Builder 5 | . . 2 . 1 2 . . Tunneler 4 | . . 3 . 1 . . . Watcher 2 | . 1 . . . 1 . . Swarmer 13 | . . 6 . . 7 . . Grunt 9 | . 7 . . . 2 . . Sentry 4 | . . 2 . . 2 . . Specialist 1 | . . . . . . . 1 Hunter 1 | . . . . . 1 . . Assembled 3 | . . . . 3 . . . Best Kill Streak 6 | . 3 4 . 3 6 . 1 Combat Bots Only 5 | . 3 3 . 3 5 . 1 Max Kills in Single Turn 4 | . 1 2 . 1 4 . 1 Gunslinging . | . . . . . . . . Exploded 3 | . . . . 1 3 . . Melee 1 | . . . . . 1 . . Uniques/NPCs Destroyed . | . . . . . . . . Combat | -11 -10 -10 -10 -9 -8 -7 -7 -------- Run | Yrd Mat Min Exi Min Mat Fac DSF Hostile Shots Fired 238 | . 58 42 . 23 112 . 3 Missed 80 | . 13 15 . 8 43 . 1 Damage Taken 2452 | . 573 325 . 264 1211 . 79 Core 450 | . 108 94 . 29 219 . . Absorbed by Shields 14 | . . . . . . . 14 Regen/Repaired (Parts) 87 | . 87 . . . . . . Core Remaining (%) 55 | 100 . . . 7 60 . . Volleys Fired 87 | . 28 29 . 16 14 . . Largest 3 | . 2 2 . 2 3 . . Hottest 191 | . 80 116 . 83 191 . . Shots Fired 166 | . 49 58 . 32 27 . . Gun 122 | . 49 57 . 16 . . . Cannon 38 | . . 1 . 16 21 . . Launcher 6 | . . . . . 6 . . Special . | . . . . . . . . Kinetic 54 | . 19 19 . 16 . . . Thermal 95 | . 30 39 . 16 10 . . Explosive 6 | . . . . . 6 . . Electromagnetic 11 | . . . . . 11 . . Robot Hit Streak 12 | . 7 12 . 6 5 . . Robot Miss Streak 4 | . 2 3 . 2 4 . . Penetration Max . | . . . . . . . . Secondary Targets 3 | . 1 2 . . . . . Max Gunslinging Chain 1 | . 1 1 . . . . . Shots Hit Robots 113 | . 33 37 . 20 22 . 1 Core Hits 66 | . 19 20 . 6 21 . . Critical Kills . | . . . . . . . . Critical Parts Destroyed 1 | . . . . . . . 1 Critical Strikes 1 | . . . . . . . 1 Smash 1 | . . . . . . . 1 Melee Attacks 19 | . . . . . 18 . 1 Impact 19 | . . . . . 18 . 1 Slashing . | . . . . . . . . Piercing . | . . . . . . . . Sneak Attacks 2 | . . . . . 1 . 1 Combat Hostiles 1 | . . . . . . . 1 Follow-up Attacks . | . . . . . . . . Damage Inflicted 3006 | . 390 440 . 354 1711 . 111 Guns 982 | . 379 423 . 180 . . . Cannons 532 | . . 17 . 174 341 . . Explosions 1013 | . . . . . 1013 . . Melee 468 | . . . . . 357 . 111 Ramming 11 | . 11 . . . . . . Kinetic 458 | . 142 136 . 180 . . . Thermal 826 | . 237 304 . 174 111 . . Explosive 1013 | . . . . . 1013 . . Electromagnetic 230 | . . . . . 230 . . Impact 468 | . . . . . 357 . 111 Slashing . | . . . . . . . . Piercing . | . . . . . . . . Highest Corruption 5 | . . . . . 5 . . Average Corruption 5 | . . . . . 5 . . Corruption Purged . | . . . . . . . . Corruption Blocked . | . . . . . . . . Effects 2 | . . . . . 2 . . Parts Rejected 1 | . . . . . 1 . . Alerts 1 | . . . . . 1 . . Overload Shots . | . . . . . . . . Overflow Damage 252 | . . . . 5 136 . 111 Projectiles 14 | . . . . 5 9 . . Explosions 38 | . . . . . 38 . . Melee 200 | . . . . . 89 . 111 Knockbacks . | . . . . . . . . Impact . | . . . . . . . . Kinetic . | . . . . . . . . Secondary . | . . . . . . . . Self-Inflicted Damage 150 | . . . . . 150 . . Shots 4 | . . . . . 4 . . Rammed . | . . . . . . . . Targets Rammed 4 | . 4 . . . . . . Kicked 4 | . 4 . . . . . . Crushed . | . . . . . . . . Highest Temperature 386 | . 118 57 . . 386 . . Average Temperature 85 | . 56 23 . . 134 . . Received Heat Transfer 549 | . 297 90 . . 162 . . Effects 1 | . . . . . 1 . . Damage (minor) 1 | . . . . . 1 . . Siege Activations . | . . . . . . . . Robots Corrupted . | . . . . . . . . Combat Hostiles . | . . . . . . . . Parts Fried 6 | . . . . . 4 . 2 Impact Corruptions 8 | . . . . . 5 . 3 Robots Melted . | . . . . . . . . Combat Hostiles . | . . . . . . . . Parts Melted 4 | . 3 1 . . . . . Heat Transferred 1804 | . 550 699 . 370 185 . . Parts Sabotaged . | . . . . . . . . Parts Stolen . | . . . . . . . . Parts Stripped . | . . . . . . . . Power Chain Reactions . | . . . . . . . . Alert | -11 -10 -10 -10 -9 -8 -7 -7 ------- Run | Yrd Mat Min Exi Min Mat Fac DSF Peak Influence 664 | . 187 200 . 10 664 231 185 Initial 231 | . . 72 . . . 231 165 Average 123 | . 88 122 . 3 243 231 182 Maximum Alert Level 2 | . . 1 . . 2 1 . Low Security (%) 88 | 100 100 99 . 100 48 . 100 Level 1 5 | . . . . . 23 100 . Level 2 6 | . . . . . 27 . . Level 3 . | . . . . . . . . Level 4 . | . . . . . . . . Level 5 . | . . . . . . . . High Security . | . . . . . . . . Max Security . | . . . . . . . . Squads Dispatched 7 | . 1 . . . 5 . 1 Investigation 3 | . 1 . . . 2 . . Extermination . | . . . . . . . . Reinforcement 4 | . . . . . 3 . 1 Assault . | . . . . . . . . Garrison . | . . . . . . . . Intercept . | . . . . . . . . Searches Triggered . | . . . . . . . . Construction Impeded . | . . . . . . . . Haulers Reinforced . | . . . . . . . . Active Scanning Responses . | . . . . . . . . Cargo Convoy Interrupts . | . . . . . . . . Stealth | -11 -10 -10 -10 -9 -8 -7 -7 --------- Run | Yrd Mat Min Exi Min Mat Fac DSF Distress Signals 3 | . . . . . 3 . . Communications Jammed . | . . . . . . . . Distress Signals . | . . . . . . . . Times Spotted 76 | . 8 11 . 13 43 . 1 Peak Tracking Total 12 | . 3 3 . 9 12 . 1 Tactical Retreats 9 | . . 1 . 2 6 . . Traps | -11 -10 -10 -10 -9 -8 -7 -7 ------- Run | Yrd Mat Min Exi Min Mat Fac DSF Traps Triggered 4 | . 1 . . 1 1 . 1 Indirectly . | . . . . . . . . Trap Hack Attempts . | . . . . . . . . Triggered . | . . . . . . . . Disarmed . | . . . . . . . . Reprogrammed . | . . . . . . . . Reused 3 | . . 2 . 1 . . . Traps Extracted . | . . . . . . . . Installed 4 | . . 2 . 2 . . . Triggered 2 | . . 2 . . . . . Most Traps Carried 3 | . . 3 2 2 . . . Machines | -11 -10 -10 -10 -9 -8 -7 -7 ---------- Run | Yrd Mat Min Exi Min Mat Fac DSF Machines Disabled 5 | . . 1 . . 4 . . Max in Single Turn 1 | . . 1 . . 1 . . Garrison Access 1 | . . . . . 1 . . Machines Repaired . | . . . . . . . . Machines Dismantled . | . . . . . . . . Machines Sabotaged . | . . . . . . . . Overloaded Fab Kills . | . . . . . . . . Hacking | -11 -10 -10 -10 -9 -8 -7 -7 --------- Run | Yrd Mat Min Exi Min Mat Fac DSF Machines Accessed 10 | . 2 1 2 . 4 1 . Terminals 4 | . . 1 . . 2 1 . Fabricators . | . . . . . . . . Repair Stations 2 | . 1 . . . 1 . . Recycling Units 1 | . 1 . . . . . . Scanalyzers . | . . . . . . . . Garrison Access 1 | . . . . . 1 . . Total Hacks 29 | . 7 4 2 . 15 1 . Successful 18 | . 4 1 2 . 10 1 . Failed 11 | . 3 3 . . 5 . . Catastrophic . | . . . . . . . . Database Lockouts . | . . . . . . . . Manual 13 | . . 3 1 . 9 . . Terminals 17 | . . 4 . . 12 1 . Fabricators . | . . . . . . . . Repair Stations 4 | . 3 . . . 1 . . Recycling Units 4 | . 4 . . . . . . Scanalyzers . | . . . . . . . . Garrison Access 2 | . . . . . 2 . . Terminal Hacks 9 | . . 1 2 . 5 1 . Record 1 | . . . 1 . . . . Prototype ID Bank 1 | . . . . . 1 . . Open DSF 1 | . . . . . . 1 . Branch Access Points 1 | . . . . . 1 . . Dispatch Records 1 | . . . . . 1 . . Reinforcement Status 1 | . . . . . 1 . . Garrison Status 1 | . . . . . 1 . . Zone Layout 1 | . . 1 . . . . . Derelict Proto ID Bank 1 | . . . 1 . . . . Fabricator Hacks . | . . . . . . . . Repair Station Hacks 3 | . 2 . . . 1 . . Scan Component 1 | . 1 . . . . . . Repair 1 | . 1 . . . . . . Refit 1 | . . . . . 1 . . Recycling Unit Hacks 2 | . 2 . . . . . . Report Inventory 1 | . 1 . . . . . . Retrieve Components 1 | . 1 . . . . . . Scanalyzer . | . . . . . . . . Garrison Access Hacks 2 | . . . . . 2 . . Seal Access 1 | . . . . . 1 . . Coupler Status 1 | . . . . . 1 . . Unauthorized Hacks 2 | . . . . . 2 . . Terminals 2 | . . . . . 2 . . Botnet 2 | . . . . . 2 . . Fabricators . | . . . . . . . . Repair Stations . | . . . . . . . . Recycling Units . | . . . . . . . . Scanalyzers . | . . . . . . . . Garrison Access . | . . . . . . . . Data Cores Recovered . | . . . . . . . . Used . | . . . . . . . . Hacking Detections 4 | . 1 1 . . 2 . . Full Trace Events 3 | . 1 1 . . 1 . . Feedback Events . | . . . . . . . . Feedback Blocked . | . . . . . . . . Robot Schematics Acquired . | . . . . . . . . Robots Built . | . . . . . . . . Authchips . | . . . . . . . . Time . | . . . . . . . . Total Robot Build Rating . | . . . . . . . . Part Schematics Acquired . | . . . . . . . . Parts Built . | . . . . . . . . Authchips . | . . . . . . . . Time . | . . . . . . . . Total Part Build Rating . | . . . . . . . . Parts Repaired 1 | . 1 . . . . . . Time 26 | . 26 . . . . . . Parts Recycled . | . . . . . . . . Recycled Matter . | . . . . . . . . Retrieved Matter . | . . . . . . . . Retrieved Components 2 | . 2 . . . . . . Parts Scanalyzed . | . . . . . . . . Part Schematics Acquired . | . . . . . . . . Parts Damaged . | . . . . . . . . Bothacking | -11 -10 -10 -10 -9 -8 -7 -7 ------------ Run | Yrd Mat Min Exi Min Mat Fac DSF Used RIF Installer . | . . . . . . . . Robots Hacked . | . . . . . . . . Non-combat . | . . . . . . . . Combat . | . . . . . . . . Robot Hacks Applied . | . . . . . . . . Relay Couplers Released . | . . . . . . . . Fabnet Peak Effective % . | . . . . . . . . Robots Rewired 1 | . . . . . 1 . . Allies Hacked . | . . . . . . . . Hacks Repelled . | . . . . . . . . Allies | -11 -10 -10 -10 -9 -8 -7 -7 -------- Run | Yrd Mat Min Exi Min Mat Fac DSF Total Allies 4 | . . 1 . 2 1 . . Largest Group 2 | . . 1 . 2 1 . . Highest-Rated Group 44 | . . 31 . 44 16 . . Highest-Rated Ally 31 | . . 31 . 31 16 . . Total Orders . | . . . . . . . . Ally Attacks 15 | . . 3 . 8 4 . . Total Damage 177 | . . 43 . 104 30 . . Kills 4 | . . 2 . 2 . . . Allies Corrupted . | . . . . . . . . Allies Melted . | . . . . . . . . Intel | -11 -10 -10 -10 -9 -8 -7 -7 ------- Run | Yrd Mat Min Exi Min Mat Fac DSF Robot Analysis Total . | . . . . . . . . Derelict Logs Recovered 3 | . . 1 . 2 . . . Drone Launches . | . . . . . . . . Drone Recoveries . | . . . . . . . . Exploration | -11 -10 -10 -10 -9 -8 -7 -7 ------------- Run | Yrd Mat Min Exi Min Mat Fac DSF Turns Passed 2096 | 9 291 822 228 318 407 3 18 Spaces Moved 1991 | 8 137 725 235 298 567 5 16 Core 101 | . . . . 53 48 . . Treads . | . . . . . . . . Legs 379 | 8 137 234 . . . . . Wheels 971 | . . 491 235 245 . . . Hover . | . . . . . . . . Flight 540 | . . . . . 519 5 16 Fastest Speed 32 | 120 120 80 95 50 32 34 34 Average Speed 82 | 120 120 97 95 87 47 34 34 Slowest Speed 150 | 120 120 120 95 110 150 35 34 Overloaded Moves . | . . . . . . . . Propulsion Burnouts . | . . . . . . . . Robots Hopped 8 | . . . . . 8 . . Cave-ins Triggered 1 | . . . . . 1 . . Exploration Rate (%) 47 | 2 35 97 61 62 48 . 29 Regions Visited 7 Branch Regions 3 Pre-discovered Areas 2 | . . . 1 1 . . . Known Exits Taken 1 | . . . . . . 1 . Unknown Exits Taken 6 | 1 1 1 1 1 1 . . Scrap Searched 1 | . . . . 1 . . . Spaces Dug 5 | . . . . . 5 . . Terrain Destroyed 68 | . . . . . 68 . . Melee 5 | . . . . . 5 . . Projectile . | . . . . . . . . AOE 63 | . . . . . 63 . . Terrain Rammed . | . . . . . . . . Walls Destroyed . | . . . . . . . . Machines Disabled . | . . . . . . . . Actions | -11 -10 -10 -10 -9 -8 -7 -7 --------- Run | Yrd Mat Min Exi Min Mat Fac DSF Total 2257 | 7 215 787 245 327 645 5 26 Wait 45 | . 28 1 . 1 15 . . Move 1968 | 7 136 724 234 297 550 4 16 Hop 8 | . . . . . 8 . . Pick Up 23 | . 4 8 3 1 7 . . Fast Attach 16 | . 2 2 . 1 9 . 2 Attach 16 | . 1 7 1 1 5 1 . Detach 6 | . . 2 1 . 2 . 1 Swap 16 | . 7 4 . 1 4 . . Drop 34 | . 5 7 6 7 9 . . Fire 87 | . 28 29 . 16 14 . . Melee 19 | . . . . . 18 . 1 Ram . | . . . . . . . . Kick 4 | . 4 . . . . . . Crush . | . . . . . . . . Escape Stasis 6 | . . . . . . . 6 Rewire 5 | . . 1 . . 4 . . Trap 4 | . . 2 . 2 . . . Miscellaneous . | . . . . . . . . Route ------- -11/Scrapyard -10/Materials -10/Mines (discovered 4 exits: *Mat x2 / *Exi / [*Sub]) -10/Exiles -9/Mines -8/Materials -7/Factory -7/DSF History --------- Turn | Location | Event 1 | -11/Scrapyard | Discovered new exit (range 3) 10 | -11/Scrapyard | Entered Materials 191 | -10/Materials | Repaired Assault Rifle 218 | -10/Materials | Discovered new exit (range 11) 301 | -10/Materials | Entered Mines 318 | -10/Mines | Build established: Mutant 451 | -10/Mines | Received a Mining Laser from a helpful Derelict 571 | -10/Mines | Identified exit to Materials 578 | -10/Mines | Discovered exit to Materials (range 10) 608 | -10/Mines | Found a hidden stash of uninstalled traps 809 | -10/Mines | Core integrity fell below 50% 947 | -10/Mines | Core integrity fell below 20% 974 | -10/Mines | Lost 3 parts (1p2n) 1030 | -10/Mines | Discovered new exit (range 13) 1098 | -10/Mines | Discovered new exit (range 13) 1120 | -10/Mines | Deemed a non-threat by the Exiles lab entrance 1123 | -10/Mines | Entered Exiles 1168 | -10/Exiles | Met 8R-AWN 1182 | -10/Exiles | Met EX-HEX 1209 | -10/Exiles | Met EX-BIN 1222 | -10/Exiles | Aligned with FarCom system 1223 | -10/Exiles | Given EX-Vault access code 1246 | -10/Exiles | Opened EX-Vault 1256 | -10/Exiles | Found Flying Fortress v7 1278 | -10/Exiles | Warned to stay clear of 0b10 Research branches 1309 | -10/Exiles | Met EX-DEC 1312 | -10/Exiles | Learned location of Zion (-6) 1342 | -10/Exiles | Discovered new exit (range 10) 1351 | -10/Exiles | Left Exiles lab with Flying Fortress v7 1351 | -10/Exiles | Entered Mines 1450 | -9/Mines | Learned Materials emergency access door positions 1551 | -9/Mines | Learned Materials interactive machine intel 1591 | -9/Mines | Assembled infested the area 1600 | -9/Mines | A weapon hastily lodged in a ceiling crevice suddenly fell to the ground 1643 | -9/Mines | Released all parts (6) 1663 | -9/Mines | Discovered new exit (range 12) 1664 | -9/Mines | Learned location of Storage (-9) 1669 | -9/Mines | Entered Materials 1669 | -8/Materials | Evolved 4 slots: Propulsion x2, Utility x1, Weapon x1 1671 | -8/Materials | Loaded intel: 19 interactive machine locations 1994 | -8/Materials | Crushed by falling debris 2065 | -8/Materials | Discovered new exit (range 5) 2069 | -8/Materials | Lost 3 parts (1n1u1w) 2076 | -8/Materials | Entered Factory 2076 | -7/Factory | Evolved 2 slots: Propulsion x2 2079 | -7/Factory | Identified exit to DSF 2079 | -7/Factory | Entered DSF 2097 | -7/DSF | Self-destructed Last Messages --------------- 02080_ Destroyed Lrg. Matter Pod. 02080_ X-67 Chaingunner system corrupted by crushing effect. 02081_ X-67 Chaingunner system terminally corrupted. 02081_ Weapon Cycler fried. 02081_ Flexi-carbon Leg fried. 02082_ Acquired 54 matter. 02084_ Acquired Imp. Utility Shielding. 02089_ ALERT: Suspicious intruders detected, dispatching Cutter reinforcements to area. 02091_ Triggered Stasis Trap. 02091_ A bubble of rippling energy engulfs the area. 02091_ Field strength at 95. 02091_ Field strength at 90. 02092_ Field strength at 85. 02093_ Field strength at 80. 02094_ Field strength at 75. 02095_ Flight Unit destroyed. 02095_ Critical hit (Blast). 02095_ Field strength at 56. 02096_ Field strength at 51. Map ----- +----------------------------------------------------+ | | | ????????????????????????????????? | | ????????????????????????????????? | | ????????????????????????????????? | | ????????????????????????????????? | | ????????????????????????????????? | | ????????????????????????????????? | | ????????????????????????????????? | | ????????????????????????????????? | | ????????????????????????????????? | | ????????????????????????????????? | | ????????????????????????????????? | | ????????????????????????????????? | | ????????????????????????????????? | | ????????????????????????????????? | | ????????????????????????????????? | | ????????????????????????????????? | | ????????????????????????????????? | | ????????????????????????????????? | | ????????????????????????????????? | | ????????????????????????????????? | | ??????######??###???????????????? | | ??????#]] #? #??!#???????????? | | ??????#]] ## #!!!##??????????? | | ??????# ????????? | | ??????#%@ H????????? | | ?????#; ^ ????????? | | ?????## % ## #!!!#???????????? | | ??????# #??? #???????????????? | | ??????### ###??????????????????? | | ???????# !!#??????????????????? | | ???????# !!#??????????????????? | | ???????# !!#??????????????????? | | ???????## ###??????????????????? | | ???????# !!#??????????????????? | | ???????# !!#??????????????????? | | ???????## ###??????????????????? | | ??????### ##???#???????????????? | | ????###"" ##!!#!!!##??????????? | | ????""""" ^ ??????? | | ????"##"" ??????? | | ??????#"""""##!!#!!!#!! ??????? | | ??????#"""""#?###???????????????? | | ??????####"##???????????????????? | | ?????????#"#????????????????????? | | ?????????""#????????????????????? | | ????????????????????????????????? | | ????????????????????????????????? | | ????????????????????????????????? | | ????????????????????????????????? | +----------------------------------------------------+ Best States ------------- Heat Dissipation 47 Energy Generation 14 Energy Capacity 265 Matter Stores 500 Matter Capacity 500 Sight Range 16 Terrain Scan Density 10 Armor Coverage 600 Utility Shielding 66 Evasion (%) 68 Targeting Accuracy 8 Item Schematics ----------------- None Robot Schematics ------------------ None Fabricated ------------ Nothing Alien Tech Used ----------------- None Achievements -------------- None Challenges ------------ None Game ------ Seed ParticleDisruptionShielding Manual? 0 Play Time 00:18:29 Cumulative 703.3 hours Start 2024.03.18 @ 17:22:15 End 2024.03.28 @ 21:20:13 Sessions 6 Manual Loads 0 Difficulty Rogue Special Mode None Game No. 740 Rogue 465 Adventurer 123 Explorer 152 Win Type - Total 26 Types 20/0/4/1/0/0/0/1/0 Lore% 83 Gallery% 91 Achievement% 76 Wizard Run 0 Options --------- Layout 0 ASCII 1 Keyboard 1 Movement Numpad Keybinds 0 Fullscreen 2 Font 18/Terminus Map View 76x50 Zoom Use 6% Tactical HUD 1 Map Filters NONE Filters NONE Steam 1 RUN: 5ae15acc-289a-42a2-9a4c-7d2e48d49f67